fUSD/lending_fUSD_20250804
["ID","MTS","AMOUNT","RATE_DAILY","PERIOD"]
[377206032,1754290339878,-400.0,0.00047397,120]
[377206033,1754290339887,-1711.4,0.00047397,120]
[377206034,1754290339897,-400.0,0.00047397,120]
[377206035,1754290339907,-727.58,0.00047397,120]
[377206036,1754290339916,-821.7,0.00047397,120]
[377206037,1754290339926,-2047.95,0.00047397,120]
[377206038,1754290339935,-326.89077999,0.00047397,120]
[377206039,1754290339945,-400.0,0.00047397,120]
[377206040,1754290339955,-421.63,0.00047397,120]
[377206041,1754290339964,-400.0,0.00047397,120]
[377206042,1754290339974,-847.35,0.00047397,120]
[377206043,1754290339986,-4419.29,0.00047397,120]
[377206044,1754290339999,-666.64,0.00047397,120]
[377206045,1754290340010,-1247.94,0.00047397,120]
[377206046,1754290340021,-1725.99,0.00047397,120]
[377206047,1754290340032,-267.396373,0.00047397,14]
[377206048,1754290340042,-468.29894965,0.00047397,120]
[377206049,1754290340053,-400.0,0.00047397,120]
[377206050,1754290340063,-1477.19,0.00047397,120]
[377206051,1754290340073,-400.0,0.00047397,120]
[377206052,1754290340084,-765.07,0.00047397,120]
[377206053,1754290340094,-1280.8,0.00047397,2]
[377206054,1754290340104,-400.0,0.00047397,120]
[377206055,1754290340122,-955.38,0.00047397,120]
[377206056,1754290340133,-901.07,0.00047397,120]
[377206057,1754290340143,-161.42193586,0.00047397,120]
[377206058,1754290340154,-400.0,0.00047397,120]
[377206059,1754290340165,-759.02,0.00047397,120]
[377206060,1754290340176,-400.0,0.00047397,120]
[377206061,1754290340187,-1041.79,0.00047397,120]
[377206062,1754290340197,-400.0,0.00047397,120]
[377206063,1754290340208,-400.0,0.00047397,120]
[377206064,1754290340219,-414.05,0.00047397,120]
[377206065,1754290340230,-400.0,0.00047397,120]
[377206066,1754290340241,-567.57,0.00047397,120]
[377206067,1754290340251,-460.0,0.00047397,120]
[377206068,1754290340262,-940.11,0.00047397,120]
[377206069,1754290340273,-1234.23,0.00047397,120]
[377206070,1754290340285,-1023.01,0.00047397,120]
[377206071,1754290340295,-1024.47,0.00047397,120]
[377206072,1754290340306,-400.0,0.00047397,120]
[377206073,1754290340316,-1121.36,0.00047397,120]
[377206074,1754290340327,-838.61,0.00047397,120]
[377206075,1754290340338,-1732.74,0.00047397,120]
[377206076,1754290340349,-151.0,0.00047397,14]
[377206077,1754290340362,-722.19,0.00047397,120]
[377206078,1754290340373,-400.0,0.00047397,120]
[377206079,1754290340383,-1553.465892,0.00047397,14]
[377206080,1754290340394,-400.0,0.00047397,120]
[377206081,1754290340405,-400.0,0.00047397,120]
[377206082,1754290340415,-407.47,0.00047397,120]
[377206083,1754290340428,-400.0,0.00047397,120]
[377206084,1754290340438,-1553.465892,0.00047397,14]
[377206085,1754290340449,-944.26,0.00047397,120]
[377206086,1754290340459,-400.0,0.00047397,120]
[377206087,1754290340470,-1293.91,0.00047397,120]
[377206088,1754290340480,-400.0,0.00047397,120]
[377206089,1754290340491,-400.0,0.00047397,120]
[377206090,1754290340501,-437.67,0.00047397,120]
[377206091,1754290340511,-400.0,0.00047397,120]
[377206092,1754290340522,-664.62,0.00047397,120]
[377206093,1754290340533,-615.77,0.00047397,120]
[377206094,1754290340543,-983.62,0.00047397,120]
[377206095,1754290340558,-1159.72,0.00047397,120]
[377206096,1754290340569,-400.0,0.00047397,120]
[377206097,1754290340580,-589.2,0.00047397,120]
[377206098,1754290340591,-1944.0,0.00047397,120]
[377206099,1754290340602,-309.08720661,0.00047397,120]
[377206100,1754290340614,-704.89,0.00047397,120]
[377206101,1754290340625,-400.0,0.00047397,120]
[377206102,1754290340635,-1090.73,0.00047397,120]
[377206103,1754290340646,-864.15,0.00047397,120]
[377206104,1754290340657,-400.0,0.00047397,120]
[377206105,1754290340667,-711.51,0.00047397,120]
[377206106,1754290340679,-456.13,0.00047397,120]
[377206107,1754290340691,-400.0,0.00047397,120]
[377206108,1754290340702,-992.05,0.00047397,120]
[377206109,1754290340712,-873.07,0.00047397,120]
[377206110,1754290340723,-400.0,0.00047397,120]
[377206111,1754290340734,-400.0,0.00047397,120]
[377206112,1754290340745,-803.61,0.00047397,120]
[377206113,1754290340757,-835.16,0.00047397,120]
[377206114,1754290340768,-529.07,0.00047397,120]
[377206115,1754290340778,-1886.61,0.00047397,120]
[377206116,1754290340789,-510.59,0.00047397,120]
[377206117,1754290340800,-1241.9,0.00047397,120]
[377206118,1754290340811,-1938.01,0.00047397,120]
[377206119,1754290340823,-931.63,0.00047397,120]
[377206120,1754290340834,-1288.92,0.00047397,120]
[377206121,1754290340846,-1414.91,0.00047397,120]
[377206122,1754290340857,-647.76,0.00047397,120]
[377206123,1754290340871,-651.67,0.00047397,120]
[377206124,1754290340882,-400.0,0.00047397,120]
[377206125,1754290340893,-480.17,0.00047397,120]
[377206126,1754290340903,-739.24,0.00047397,120]
[377206127,1754290340914,-470.07,0.00047397,120]
[377206128,1754290340925,-415.44,0.00047397,120]
[377206129,1754290340936,-226.969151,0.00047397,14]
[377206130,1754290340947,-1148.6,0.00047397,120]
[377206131,1754290340958,-400.0,0.00047397,120]
[377206132,1754290340969,-226.969151,0.00047397,14]
[377206133,1754290340979,-582.45,0.00047397,120]
[377206134,1754290340990,-400.0,0.00047397,120]
[377206135,1754290341000,-6194.75,0.00047397,120]
[377206136,1754290341011,-1126.3,0.00047397,120]
[377206137,1754290341022,-550.08,0.00047397,120]
[377206138,1754290341033,-400.0,0.00047397,120]
[377206139,1754290341043,-400.0,0.00047397,7]
[377206140,1754290341054,-442.19,0.00047397,120]
[377206141,1754290341064,-1252.69,0.00047397,120]
[377206142,1754290341075,-405.89,0.00047397,120]
[377206143,1754290341086,-400.0,0.00047397,120]
[377206144,1754290341097,-400.0,0.00047397,120]
[377206145,1754290341108,-3027.52,0.00047397,120]
[377206146,1754290341122,-413.99,0.00047397,120]
[377206147,1754290341133,-1732.1,0.00047397,120]
[377206148,1754290341144,-400.0,0.00047397,120]
[377206149,1754290341155,-400.0,0.00047397,120]
[377206150,1754290341166,-400.0,0.00047397,120]
[377206151,1754290341176,-400.0,0.00047397,120]
[377206152,1754290341188,-400.0,0.00047397,120]
[377206153,1754290341199,-1473.85,0.00047397,120]
[377206154,1754290341210,-400.0,0.00047397,120]
[377206155,1754290341221,-400.0,0.00047397,120]
[377206156,1754290341231,-400.0,0.00047397,120]
[377206157,1754290341243,-457.13,0.00047397,120]
[377206158,1754290341254,-2588.78,0.00047397,120]
[377206159,1754290341265,-1796.48,0.00047397,120]
[377206160,1754290341275,-520.0,0.00047397,120]
[377206161,1754290341286,-527.16,0.00047397,120]
[377206162,1754290341297,-759.368077,0.00047397,14]
[377206163,1754290341308,-1690.27,0.00047397,120]
[377206164,1754290341319,-400.0,0.00047397,120]
[377206165,1754290341330,-400.0,0.00047397,120]
[377206166,1754290341341,-1266.42,0.00047397,120]
[377206167,1754290341359,-653.3,0.00047397,120]
[377206168,1754290341374,-1195.08,0.00047397,120]
[377206169,1754290341385,-759.368077,0.00047397,14]
[377206170,1754290341395,-400.0,0.00047397,120]
[377206171,1754290341407,-1579.08,0.00047397,120]
[377206172,1754290341418,-400.0,0.00047397,120]
[377206173,1754290341429,-1395.13,0.00047397,120]
[377206174,1754290341440,-432.6,0.00047397,120]
[377206175,1754290341451,-400.0,0.00047397,120]
[377206176,1754290341465,-400.0,0.00047397,120]
[377206177,1754290341475,-400.0,0.00047397,120]
[377206178,1754290341486,-472.09,0.00047397,120]
[377206179,1754290341498,-400.0,0.00047397,120]
[377206180,1754290341508,-1000.17,0.00047397,120]
[377206181,1754290341520,-599.49,0.00047397,120]
[377206182,1754290341531,-538.07,0.00047397,120]
[377206183,1754290341542,-504.36,0.00047397,120]
[377206184,1754290341553,-451.13171668,0.00047397,120]
[377206185,1754290341564,-400.0,0.00047397,120]
[377206186,1754290341575,-400.0,0.00047397,120]
[377206187,1754290341586,-549.51,0.00047397,120]
[377206188,1754290341597,-4817.73,0.00047397,120]
[377206189,1754290341608,-1319.08,0.00047397,120]
[377206190,1754290341621,-2387.84,0.00047397,120]
[377206191,1754290341633,-400.0,0.00047397,120]
[377206192,1754290341644,-400.0,0.00047397,120]
[377206193,1754290341655,-5079.36,0.00047397,120]
[377206194,1754290341666,-400.0,0.00047397,120]
[377206195,1754290341679,-400.0,0.00047397,120]
[377206196,1754290341694,-400.0,0.00047397,120]
[377206197,1754290341704,-1680.69,0.00047397,120]
[377206198,1754290341715,-400.0,0.00047397,120]
[377206199,1754290341727,-1295.48,0.00047397,120]
[377206200,1754290341738,-400.0,0.00047397,120]
[377206201,1754290341748,-435.74,0.00047397,120]
[377206202,1754290341759,-400.0,0.00047397,120]
[377206203,1754290341770,-1121.24,0.00047397,120]
[377206204,1754290341781,-400.0,0.00047397,120]
[377206205,1754290341791,-526.22,0.00047397,120]
[377206206,1754290341802,-705.04,0.00047397,120]
[377206207,1754290341812,-277.257874,0.00047397,14]
[377206208,1754290341823,-734.38,0.00047397,120]
[377206209,1754290341835,-2936.94,0.00047397,120]
[377206210,1754290341846,-400.0,0.00047397,120]
[377206211,1754290341857,-400.0,0.00047397,120]
[377206212,1754290341868,-867.58,0.00047397,120]
[377206213,1754290341879,-926.06,0.00047397,120]
[377206214,1754290341891,-1130.87,0.00047397,120]
[377206215,1754290341902,-465.98,0.00047397,120]
[377206216,1754290341913,-400.0,0.00047397,120]
[377206217,1754290341923,-1703.37,0.00047397,120]
[377206218,1754290341934,-400.0,0.00047397,120]
[377206219,1754290341945,-1231.39,0.00047397,120]
[377206220,1754290341956,-400.0,0.00047397,120]
[377206221,1754290341968,-704.05,0.00047397,120]
[377206222,1754290341979,-400.0,0.00047397,120]
[377206223,1754290341990,-400.0,0.00047397,120]
[377206224,1754290342001,-487.85,0.00047397,120]
[377206225,1754290342011,-400.0,0.00047397,120]
[377206226,1754290342023,-199.24701674,0.00047397,120]
[377206227,1754290342034,-730.78,0.00047397,120]
[377206228,1754290342045,-1356.87,0.00047397,120]
[377206229,1754290342055,-500.81,0.00047397,120]
[377206230,1754290342066,-400.0,0.00047397,120]
[377206231,1754290342077,-947.6,0.00047397,120]
[377206232,1754290342088,-400.0,0.00047397,120]
[377206233,1754290342099,-400.0,0.00047397,120]
[377206234,1754290342109,-400.0,0.00047397,120]
[377206235,1754290342122,-434.42,0.00047397,120]
[377206236,1754290342133,-1287.13,0.00047397,120]
[377206237,1754290342143,-400.0,0.00047397,120]
[377206238,1754290342154,-400.0,0.00047397,120]
[377206239,1754290342165,-400.0,0.00047397,120]
[377206240,1754290342175,-896.46,0.00047397,120]
[377206241,1754290342186,-1890.35,0.00047397,120]
[377206242,1754290342197,-1067.68,0.00047397,120]
[377206243,1754290342208,-400.0,0.00047397,120]
[377206244,1754290342218,-841.55,0.00047397,120]
[377206245,1754290342229,-434.38,0.00047397,120]
[377206246,1754290342240,-400.0,0.00047397,120]
[377206247,1754290342250,-400.0,0.00047397,120]
[377206248,1754290342262,-987.56,0.00047397,120]
[377206249,1754290342272,-469.62,0.00047397,120]
[377206250,1754290342283,-530.43,0.00047397,120]
[377206251,1754290342294,-810.88,0.00047397,120]
[377206252,1754290342305,-400.0,0.00047397,120]
[377206253,1754290342315,-915.69,0.00047397,120]
[377206254,1754290342326,-1058.36,0.00047397,120]
[377206255,1754290342336,-1501.77,0.00047397,120]
[377206256,1754290342347,-935.48,0.00047397,120]
[377206257,1754290342358,-1101.74,0.00047397,120]
[377206258,1754290342369,-400.0,0.00047397,120]
[377206259,1754290342380,-1159.69,0.00047397,120]
[377206260,1754290342391,-400.0,0.00047397,120]
[377206261,1754290342403,-400.0,0.00047397,120]
[377206262,1754290342414,-1876.25,0.00047397,120]
[377206263,1754290342741,-798.01,0.00047397,120]
[377206264,1754290342752,-5826.35,0.00047397,120]
[377206265,1754290342763,-400.0,0.00047397,120]
[377206266,1754290342773,-896.35,0.00047397,120]
[377206267,1754290342782,-556.22,0.00047397,120]
[377206268,1754290342792,-400.0,0.00047397,120]
[377206269,1754290342802,-1601.38,0.00047397,120]
[377206270,1754290342811,-400.0,0.00047397,120]
[377206271,1754290342821,-607.9,0.00047397,120]
[377206272,1754290342830,-2561.99,0.00047397,14]
[377206273,1754290342840,-400.0,0.00047397,120]
[377206274,1754290342850,-655.52,0.00047397,120]
[377206275,1754290342861,-400.0,0.00047397,120]
[377206276,1754290342871,-451.2,0.00047397,120]
[377206277,1754290342881,-400.0,0.00047397,120]
[377206278,1754290342892,-485.14,0.00047397,120]
[377206279,1754290342901,-1166.35,0.00047397,120]
[377206280,1754290342912,-400.0,0.00047397,120]
[377206281,1754290342921,-838.64,0.00047397,120]
[377206282,1754290342931,-456.28,0.00047397,120]
[377206283,1754290342941,-1792.8,0.00047397,120]
[377206284,1754290342952,-1368.58,0.00047397,120]
[377206285,1754290342963,-517.54,0.00047397,120]
[377206286,1754290342973,-660.82,0.00047397,120]
[377206287,1754290342983,-1364.42,0.00047397,120]
[377206288,1754290342992,-400.0,0.00047397,120]
[377206289,1754290343002,-1118.49,0.00047397,120]
[377206290,1754290343012,-400.0,0.00047397,120]
[377206291,1754290343022,-400.0,0.00047397,120]
[377206292,1754290343032,-167.27952128,0.00047397,120]
[377206293,1754290343042,-400.0,0.00047397,120]
[377206294,1754290343052,-89408.18,0.00047397,120]
[377206295,1754290343062,-606.91,0.00047397,120]
[377206296,1754290343072,-400.0,0.00047397,120]
[377206297,1754290343081,-1091.37,0.00047397,120]
[377206298,1754290343091,-842.24,0.00047397,120]
[377206299,1754290343100,-400.0,0.00047397,120]
[377206300,1754290343111,-1407.22,0.00047397,120]
[377206301,1754290343122,-400.0,0.00047397,120]
[377206302,1754290343132,-400.0,0.00047397,120]
[377206303,1754290343142,-1114.29,0.00047397,120]
[377206304,1754290343152,-641.89,0.00047397,120]
[377206305,1754290343162,-442.8,0.00047397,120]
[377206306,1754290343172,-429.17,0.00047397,120]
[377206307,1754290343182,-400.0,0.00047397,120]
[377206308,1754290343191,-400.0,0.00047397,120]
[377206309,1754290343201,-681.25,0.00047397,120]
[377206310,1754290343211,-3089.74,0.00047397,120]
[377206311,1754290343220,-400.0,0.00047397,120]
[377206312,1754290343230,-400.0,0.00047397,120]
[377206313,1754290343240,-735.44,0.00047397,120]
[377206314,1754290343250,-1045.87,0.00047397,120]
[377206315,1754290343260,-400.0,0.00047397,120]
[377206316,1754290343270,-512.16,0.00047397,120]
[377206317,1754290343279,-7487.46,0.00047397,120]
[377206318,1754290343289,-1620.5,0.00047397,120]
[377206319,1754290343299,-1146.08,0.00047397,120]
[377206320,1754290343308,-400.0,0.00047397,120]
[377206321,1754290343317,-1108.92,0.00047397,120]
[377206322,1754290343327,-4191.81,0.00047397,120]
[377206323,1754290343336,-997.82,0.00047397,120]
[377206324,1754290343346,-706.49,0.00047397,120]
[377206325,1754290343356,-400.0,0.00047397,120]
[377206326,1754290343365,-400.0,0.00047397,120]
[377206327,1754290343375,-442.74,0.00047397,120]
[377206328,1754290343385,-151.0,0.00047397,14]
[377206329,1754290343395,-471.63,0.00047397,120]
[377206330,1754290343404,-400.0,0.00047397,120]
[377206331,1754290343414,-451.29,0.00047397,120]
[377206332,1754290343423,-400.0,0.00047397,120]
[377206333,1754290343433,-879.395519,0.00047397,14]
[377206334,1754290343443,-400.0,0.00047397,120]
[377206335,1754290343452,-400.0,0.00047397,120]
[377206336,1754290343462,-879.395519,0.00047397,14]
[377206337,1754290343472,-400.0,0.00047397,120]
[377206338,1754290343481,-2538.55,0.00047397,120]
[377206339,1754290343491,-485.24,0.00047397,120]
[377206340,1754290343502,-1069.88,0.00047397,120]
[377206341,1754290343512,-400.0,0.00047397,120]
[377206342,1754290343524,-429.54,0.00047397,120]
[377206343,1754290343535,-400.0,0.00047397,120]
[377206344,1754290343545,-151.0,0.00047397,14]
[377206345,1754290343556,-803.05,0.00047397,120]
[377206346,1754290343567,-400.0,0.00047397,120]
[377206347,1754290343577,-150.0,0.00047409,7]
[377206348,1754290343587,-1006.00426771,0.00047421,10]
[377206349,1754290343598,-584.85073515,0.00047421,10]
[377206350,1754290343609,-150.0,0.00047422,7]
[377206351,1754290343621,-150.0,0.00047424,7]
[377206352,1754290343631,-519.33329631,0.00047425,15]
[377206353,1754290343640,-150.0,0.0004743,7]
[377206354,1754290343650,-210.0,0.00047444,120]
[377206355,1754290343660,-338.97,0.00047446,120]
[377206356,1754290343670,-150.0,0.00047448,7]
[377206357,1754290343681,-150.0,0.0004748,7]
[377206358,1754290343692,-150.0,0.00047484,7]
[377206359,1754290343702,-150.0,0.0004749,7]
[377206360,1754290343712,-150.0,0.00047493,14]
[377206361,1754290343723,-150.0,0.00047499,7]
[377206362,1754290343734,-500.0,0.000475,120]
[377206363,1754290343743,-8000.0,0.000475,120]
[377206364,1754290343756,-150.0,0.00047526,7]
[377206365,1754290343766,-150.0,0.00047533,7]
[377206366,1754290343777,-4223.0,0.00047534,120]
[377206367,1754290343788,-2268.23,0.00047535,120]
[377206368,1754290343799,-2268.23,0.00047535,120]
[377206369,1754290343810,-2268.23,0.00047535,120]
[377206370,1754290343822,-2268.23,0.00047535,120]
[377206371,1754290343836,-2268.43529105,0.00047535,120]
[377206372,1754290343847,-799.2,0.00047536,120]
[377206373,1754290343859,-400.0,0.00047536,120]
[377206374,1754290343869,-726.69,0.00047536,120]
[377206375,1754290343879,-400.0,0.00047536,120]
[377206376,1754290343890,-400.0,0.00047536,120]
[377206377,1754290343900,-1306.33,0.00047536,120]
[377206378,1754290343911,-451.38,0.00047536,120]
[377206379,1754290343923,-400.0,0.00047536,120]
[377206380,1754290343933,-400.0,0.00047536,120]
[377206381,1754290343943,-404.78551888,0.00047536,120]
[377206382,1754290343952,-400.0,0.00047536,120]
[377206383,1754290343962,-400.0,0.00047536,120]
[377206384,1754290343971,-1281.8,0.00047536,120]
[377206385,1754290343981,-833.46,0.00047536,120]
[377206386,1754290343991,-400.0,0.00047536,120]
[377206387,1754290344001,-869.18,0.00047536,120]
[377206388,1754290344010,-400.0,0.00047536,120]
[377206389,1754290344020,-621.77,0.00047536,120]
[377206390,1754290344030,-432.43,0.00047536,120]
[377206391,1754290344040,-413.71438832,0.00047536,120]
[377206392,1754290344050,-400.0,0.00047536,120]
[377206393,1754290344059,-400.0,0.00047536,120]
[377206394,1754290344070,-400.0,0.00047536,120]
[377206395,1754290344080,-676.44,0.00047536,120]
[377206396,1754290344090,-400.0,0.00047536,120]
[377206397,1754290344100,-812.3,0.00047536,120]
[377206398,1754290344110,-587.51,0.00047536,120]
[377206399,1754290344121,-624.46,0.00047536,120]
[377206400,1754290344131,-537.59512752,0.00047536,120]
[377206401,1754290344140,-400.0,0.00047536,120]
[377206402,1754290344150,-400.0,0.00047536,120]
[377206403,1754290344159,-696.02,0.00047536,120]
[377206404,1754290344168,-400.0,0.00047536,120]
[377206405,1754290344178,-1192.58,0.00047536,120]
[377206406,1754290344187,-400.0,0.00047536,120]
[377206407,1754290344197,-450.66,0.00047536,120]
[377206408,1754290344208,-400.0,0.00047536,120]
[377206409,1754290344218,-400.0,0.00047536,120]
[377206410,1754290344228,-489.9,0.00047536,120]
[377206411,1754290344238,-408.15,0.00047536,120]
[377206412,1754290344248,-400.0,0.00047536,120]
[377206413,1754290344258,-1065.39,0.00047536,120]
[377206414,1754290344268,-1254.04,0.00047536,120]
[377206415,1754290344278,-400.0,0.00047536,120]
[377206416,1754290344288,-400.0,0.00047536,120]
[377206417,1754290344297,-151.0,0.00047536,14]
[377206418,1754290344307,-303.10329159,0.00047536,120]
[377206419,1754290344318,-400.0,0.00047536,120]
[377206420,1754290344327,-400.0,0.00047536,120]
[377206421,1754290344338,-400.0,0.00047536,120]
[377206422,1754290344347,-400.0,0.00047536,120]
[377206423,1754290344358,-400.0,0.00047536,120]
[377206424,1754290344371,-400.0,0.00047536,120]
[377206425,1754290344380,-700.37,0.00047536,120]
[377206426,1754290344390,-587.03,0.00047536,120]
[377206427,1754290344400,-686.88,0.00047536,120]
[377206428,1754290344410,-508.89,0.00047536,120]
[377206429,1754290344420,-400.0,0.00047536,120]
[377206430,1754290344429,-839.3,0.00047536,120]
[377206431,1754290344439,-403.64864684,0.00047536,120]
[377206432,1754290344448,-151.0,0.00047536,14]
[377206433,1754290344459,-400.0,0.00047536,120]
[377206434,1754290344469,-716.58,0.00047536,120]
[377206435,1754290344480,-400.0,0.00047536,120]
[377206436,1754290344490,-982.75,0.00047536,120]
[377206437,1754290344500,-400.0,0.00047536,120]
[377206438,1754290344510,-400.0,0.00047536,120]
[377206439,1754290344520,-400.0,0.00047536,120]
[377206440,1754290344530,-400.0,0.00047536,120]
[377206441,1754290344540,-623.88,0.00047536,120]
[377206442,1754290344550,-1016.34,0.00047536,120]
[377206443,1754290344559,-1008.23,0.00047536,120]
[377206444,1754290344569,-1870.31,0.00047536,120]
[377206445,1754290344578,-400.0,0.00047536,120]
[377206446,1754290344588,-400.0,0.00047536,120]
[377206447,1754290344598,-866.44,0.00047536,120]
[377206448,1754290344607,-400.0,0.00047536,120]
[377206449,1754290344617,-151.0,0.00047536,14]
[377206450,1754290344627,-400.0,0.00047536,120]
[377206451,1754290344636,-82.59166816,0.00047536,120]
[377206452,1754290345353,-792.3496034,0.00047536,120]
[377206453,1754290345366,-892.93872844,0.00047536,120]
[377206454,1754290345376,-400.0,0.00047536,120]
[377206455,1754290345386,-295.29132189,0.00047536,120]
[377206456,1754290345398,-390.82867811,0.00047536,120]
[377206457,1754290345408,-400.0,0.00047536,120]
[377206458,1754290345417,-400.0,0.00047536,120]
[377206459,1754290345427,-401.34434018,0.00047536,120]
[377206460,1754290345436,-170.41594023,0.00047536,120]
[377206461,1754290345445,-151.0,0.00047536,14]
[377206462,1754290345455,-177.685595,0.00047536,14]
[377206463,1754290345464,-151.0,0.00047536,14]
[377206464,1754290345474,-177.685595,0.00047536,14]
[377206465,1754290345483,-151.0,0.00047536,14]
[377206466,1754290345493,-223.056698,0.00047536,14]
[377206467,1754290345502,-226.969151,0.00047536,14]
[377206468,1754290345512,-226.969151,0.00047536,14]
[377206469,1754290345521,-759.368077,0.00047536,14]
[377206470,1754290345530,-759.368077,0.00047536,14]
[377206471,1754290345540,-151.0,0.00047536,14]
[377206472,1754290345552,-150.0,0.0004754,7]
[377206473,1754290345561,-150.0,0.00047545,7]
[377206474,1754290345571,-150.0,0.0004755,7]
[377206475,1754290345581,-151.0,0.00047556,14]
[377206476,1754290345590,-153.73788876,0.00047556,14]
[377206477,1754290345600,-151.0,0.00047567,14]
[377206478,1754290345609,-66.31576962,0.00047567,14]
[377206479,1754290345621,-84.68423038,0.00047567,14]
[377206480,1754290345631,-271.191673,0.00047567,14]
[377206481,1754290345640,-269.69475747,0.00047568,120]
[377206482,1754290345677,-440.282274,0.00047121,14]
[377206483,1754290345690,-130.30524253,0.00047568,120]
[377206484,1754290345701,-489.67,0.00047568,120]
[377206485,1754290345711,-400.0,0.00047568,120]
[377206486,1754290345721,-2452.52,0.00047568,120]
[377206487,1754290345731,-400.0,0.00047568,120]
[377206488,1754290345741,-400.0,0.00047568,120]
[377206489,1754290345750,-400.0,0.00047568,120]
[377206490,1754290345762,-6842.01,0.00047568,120]
[377206491,1754290345771,-276.939476,0.00047569,14]
[377206492,1754290345780,-400.0,0.00047569,120]
[377206493,1754290345790,-562.27,0.00047569,120]
[377206494,1754290345800,-400.0,0.00047569,120]
[377206495,1754290345810,-500.92,0.00047569,120]
[377206496,1754290345819,-400.0,0.00047569,120]
[377206497,1754290345832,-1744.82,0.00047569,120]
[377206498,1754290345852,-1361.4,0.00047569,120]
[377206499,1754290345865,-669.57,0.00047569,120]
[377206500,1754290345875,-1817.69,0.00047569,120]
[377206501,1754290345884,-579.33,0.00047569,120]
[377206502,1754290345894,-400.0,0.00047569,120]
[377206503,1754290345903,-400.0,0.00047569,120]
[377206504,1754290345913,-490.79,0.00047569,120]
[377206505,1754290345922,-271.980692,0.00047569,14]
[377206506,1754290345932,-400.0,0.00047569,120]
[377206507,1754290345941,-271.980692,0.00047569,14]
[377206508,1754290345950,-400.0,0.00047569,120]
[377206509,1754290345959,-151.0,0.00047569,14]
[377206510,1754290345969,-1553.465892,0.00047569,14]
[377206511,1754290345979,-1553.465892,0.00047569,14]
[377206512,1754290345989,-400.0,0.00047569,120]
[377206513,1754290345999,-400.0,0.00047569,120]
[377206514,1754290346009,-809.06,0.00047569,120]
[377206515,1754290346018,-1226.73,0.00047569,120]
[377206516,1754290346027,-1863.87,0.00047569,120]
[377206517,1754290346037,-971.64,0.00047569,120]
[377206518,1754290346046,-1351.39,0.00047569,120]
[377206519,1754290346056,-444.66,0.00047569,120]
[377206520,1754290346065,-879.395519,0.00047569,14]
[377206521,1754290346075,-879.395519,0.00047569,14]
[377206522,1754290346085,-223.433648,0.0004757,14]
[377206523,1754290346094,-223.433648,0.0004757,14]
[377206524,1754290346105,-151.670486,0.0004757,14]
[377206525,1754290346114,-247.687436,0.0004757,14]
[377206526,1754290346124,-247.687436,0.0004757,14]
[377206527,1754290346133,-1100.823876,0.0004757,14]
[377206528,1754290346142,-1100.823876,0.0004757,14]
[377206529,1754290346151,-151.0,0.0004757,14]
[377206530,1754290346160,-151.0,0.0004757,14]
[377206531,1754290346170,-491.07,0.0004757,120]